Cogmind - Beta 15 @@@ ROGUE MODE // 2025.05.22 @ 21:02:56 Player: Tenderz Result: Destroyed by R9-V15(R) with Subdweller Shrapnel Launcher Performance ------------- Evolutions (0) 0 Regions Visited (3) 600 Robots Destroyed (15) 75 Value Destroyed (381) 381 Prototype IDs (0) 0 Alien Tech Used (0) 0 Bonus (120) 120 TOTAL SCORE: 1176 Bonus ------- Follower Combat Kills 120 Cogmind --------- Core Integrity 0/250 Matter 265/300 Energy 160/160 System Corruption 0% Temperature Cool (0) Movement Walking (190) Ox1 Location -10/Subcaves Parts ------- > --- POWER (1) -------- Light Nuclear Core > --- PROPULSION (2) --- Aluminum Leg Aluminum Leg > --- UTILITY (2) ------ Large Storage Unit Light Armor Plating > --- WEAPON (2) ------- Beam Rifle Grenade Launcher > --- INVENTORY (15) --- Ion Engine Aluminum Leg Aluminum Leg Aluminum Leg Improved Heat Sink High-capacity Matter Pod (200) Sensor Array Terrain Scanner Particle Gun Assault Rifle Heavy Assault Rifle Light Cannon Grenade Launcher Mining Laser Peak State ------------ > --- POWER ------------ Light Nuclear Core > --- PROPULSION ------- Aluminum Leg Aluminum Leg > --- UTILITY ---------- Improved Heat Sink Large Storage Unit > --- WEAPON ----------- Particle Gun Light Assault Rifle > --- INVENTORY -------- Ion Engine Light Treads Aluminum Leg Aluminum Leg Aluminum Leg High-capacity Matter Pod Sensor Array Seismic Detector Tractor Beam Light Assault Rifle Light Assault Rifle Light Assault Rifle Light Cannon Grenade Launcher Mining Laser [Rating: 13] Favorites ----------- Power Light Nuclear Core Engine Light Ion Engine Power Core Light Nuclear Core Propulsion Aluminum Leg Treads Light Treads Leg Aluminum Leg Utility Seismic Detector Device Seismic Detector Storage Large Storage Unit Protection Light Armor Plating Weapon Light Assault Rifle Energy Gun Particle Gun Ballistic Gun Light Assault Rifle Launcher Grenade Launcher Special Weapon Mining Laser Build | -11 -10 -10 -10 ------- Run | Yrd Mat Min Sub Slots Evolved . | . . . . Power . | . . . . Propulsion . | . . . . Utility . | . . . . Weapon . | . . . . Parts Attached 24 | 8 13 1 2 Power 3 | 1 2 . . Engine 2 | 1 1 . . Core 1 | . 1 . . Reactor . | . . . . Propulsion 7 | 2 5 . . Treads 2 | 2 . . . Leg 5 | . 5 . . Wheel . | . . . . Hover . | . . . . Flight . | . . . . Utility 8 | 3 4 . 1 Device 4 | 1 3 . . Storage 3 | 2 1 . . Processor . | . . . . Hackware . | . . . . Protection 1 | . . . 1 Artifact . | . . . . Weapon 6 | 2 2 1 1 Energy Gun 2 | . 1 1 . Energy Cannon . | . . . . Ballistic Gun 2 | 2 . . . Ballistic Cannon . | . . . . Launcher 1 | . . . 1 Special Weapon 1 | . 1 . . Impact Weapon . | . . . . Slashing Weapon . | . . . . Piercing Weapon . | . . . . Special Melee Weapon . | . . . . Unidentified Prototypes . | . . . . Parts Lost 3 | . 2 . 1 Power 1 | . 1 . . Propulsion . | . . . . Utility 2 | . 1 . 1 Weapon . | . . . . Highest Loss Streak 1 | . 1 . 1 To Critical Strikes . | . . . . Average Backups 11 | 3 9 15 14 Power . | . . 1 1 Propulsion 2 | . 2 3 3 Utility 3 | . 3 4 4 Weapon 4 | 1 3 5 6 Tool/Special . | . . . . Unused Backups 19 | . 4 5 10 Power 1 | . . . 1 Propulsion 6 | . 2 1 3 Utility 4 | . . 2 2 Weapon 8 | . 2 2 4 Tool/Special . | . . . . Average Slot Usage (%) 99 | . 99 100 100 Engine 2 | . 4 . . Core 11 | . 9 14 14 Treads 3 | . 6 . . Leg 24 | . 21 28 28 Device 13 | . 13 14 14 Storage 14 | . 14 14 14 Energy Gun 11 | . 9 14 14 Ballistic Gun 11 | . 18 . . Special Weapon 5 | . . 14 4 Peak Build Rating 13 | 9 13 11 11 Average Rating 10 | 5 10 11 10 On Entrance 7 | . 9 11 11 Naked Turns . | . . . . Heaviest Build 32 | 15 30 30 32 Greatest Support 40 | 40 40 20 20 Greatest Overweight (x) 1 | . 1 1 1 Average Overweight (x) . | . . 1 1 Largest Inventory Capacity 15 | 8 15 15 15 Average Capacity 12 | 7 11 15 15 Most Carried 15 | 5 15 15 15 Average Carried 11 | 3 9 14 14 Final Capacity 15 | 8 15 15 15 Final Carried 15 | 5 15 15 14 Class Distribution -------------------- 74% | Scavenger-Mutant 25% | Mutant Dominant Class ---------------- Scavenger-Mutant | -10/Materials Scavenger-Mutant | -10/Mines Scavenger-Mutant | -10/Subcaves Resources | -11 -10 -10 -10 ----------- Run | Yrd Mat Min Sub Matter Collected 861 | 318 451 82 10 Remotely . | . . . . Salvage Created 632 | 120 512 . . Parts 32 | 8 24 . . Haulers Intercepted . | . . . . Recyclers Shooed 3 | . 2 1 . Parts Field Recycled . | . . . . Retrieved Matter . | . . . . Parts Self-Destructed . | . . . . Prevented . | . . . . Kills | -11 -10 -10 -10 ------- Run | Yrd Mat Min Sub Combat Hostiles Destroyed 9 | . 9 . . Guns 9 | . 9 . . Classes Destroyed 3 | 2 1 . . Tunneler 3 | 3 . . . Recycler 3 | 1 2 . . Grunt 9 | . 9 . . Best Kill Streak 3 | 1 3 . . Combat Bots Only 3 | . 3 . . Max Kills in Single Turn 1 | 1 1 . . Gunslinging . | . . . . Exploded . | . . . . Melee . | . . . . Uniques/NPCs Destroyed . | . . . . Combat | -11 -10 -10 -10 -------- Run | Yrd Mat Min Sub Hostile Shots Fired 71 | . 63 . 8 Missed 16 | . 14 . 2 Hits 55 | . 49 . 6 Projectile 55 | . 49 . 6 AOE 4 | . . . 4 Critical Strikes 2 | . 2 . . Damage Taken 875 | . 611 . 264 Core 267 | . 168 . 99 Absorbed by Shields . | . . . . Core Remaining (%) 100 | 100 . . . Volleys Fired 82 | 19 59 1 3 Largest 2 | 2 2 1 1 Hottest 100 | 40 100 56 30 Shots Fired 156 | 38 114 1 3 Gun 150 | 38 111 1 . Cannon . | . . . . Launcher 3 | . . . 3 Special 3 | . 3 . . Kinetic 128 | 38 90 . . Thermal 25 | . 24 1 . Explosive 3 | . . . 3 Electromagnetic . | . . . . Robot Hit Streak 22 | 6 22 . 2 Robot Miss Streak 3 | 3 3 1 2 Penetration Max . | . . . . Secondary Targets 3 | . 3 . . Max Gunslinging Chain 1 | . 1 . . Shots Hit Robots 100 | 22 76 . 2 Core Hits 35 | 7 26 . 2 Critical Kills 1 | . 1 . . Critical Parts Destroyed 1 | 1 . . . Critical Strikes 2 | 1 1 . . Destroy 2 | 1 1 . . Melee Attacks . | . . . . Impact . | . . . . Slashing . | . . . . Piercing . | . . . . Sneak Attacks . | . . . . Combat Hostiles . | . . . . Follow-up Attacks . | . . . . Damage Inflicted 1125 | 180 684 . 261 Guns 858 | 180 678 . . Cannons . | . . . . Explosions 261 | . . . 261 Melee . | . . . . Ramming 6 | . 6 . . Kinetic 702 | 180 522 . . Thermal 156 | . 156 . . Explosive 261 | . . . 261 Electromagnetic . | . . . . Impact . | . . . . Slashing . | . . . . Piercing . | . . . . Highest Corruption . | . . . . Average Corruption . | . . . . Corruption Purged . | . . . . Corruption Blocked . | . . . . Overload Shots . | . . . . Overflow Damage . | . . . . Projectiles . | . . . . Explosions . | . . . . Melee . | . . . . Knockbacks . | . . . . Impact . | . . . . Kinetic . | . . . . Secondary . | . . . . Self-Inflicted Damage . | . . . . Shots . | . . . . Rammed . | . . . . Targets Rammed 2 | . 2 . . Kicked 2 | . 2 . . Crushed . | . . . . Highest Temperature 140 | . 140 20 . Average Temperature 38 | . 39 11 . Received Heat Transfer 393 | . 381 . 12 Siege Activations . | . . . . Martial Activations . | . . . . Shielding Activations . | . . . . Robots Disrupted . | . . . . Combat Hostiles . | . . . . Robots Corrupted . | . . . . Combat Hostiles . | . . . . Parts Fried . | . . . . Impact Corruptions . | . . . . Robots Melted . | . . . . Combat Hostiles . | . . . . Parts Melted . | . . . . Heat Transferred 370 | . 370 . . Parts Sabotaged . | . . . . Parts Stolen . | . . . . Parts Stripped . | . . . . Power Chain Reactions . | . . . . Alert | -11 -10 -10 -10 ------- Run | Yrd Mat Min Sub Maximum Alert Level . | . . . . Low Security (%) 100 | 100 100 100 . Level 1 . | . . . . Level 2 . | . . . . Level 3 . | . . . . Level 4 . | . . . . Level 5 . | . . . . High Security . | . . . . Max Security . | . . . . Peak Influence 64 | 5 64 58 . Initial 3 | . . 3 . Average 9 | 1 13 4 . Influence Increases 395 | 20 317 58 . Destroy 0b10 Robot/C 220 | . 180 40 . Destroy 0b10 Robot/NC 30 | 20 10 . . Destroy Leader 50 | . 40 10 . Allied During Kill 8 | . . 8 . Successful Hack 24 | . 24 . . Disable Machine 15 | . 15 . . Destroy Structure 3 | . 3 . . Lose Combat Pursuer 45 | . 45 . . Influence Decreases 395 | 20 308 67 . Entered New Map 6 | . . 6 . Time Decay 389 | 20 308 61 . Squads Dispatched 2 | . 2 . . Investigation 1 | . 1 . . Extermination . | . . . . Reinforcement 1 | . 1 . . Assault . | . . . . Garrison . | . . . . Intercept . | . . . . Searches Triggered . | . . . . Construction Impeded . | . . . . Haulers Reinforced . | . . . . Active Scanning Responses . | . . . . Cargo Convoy Interrupts . | . . . . Stealth | -11 -10 -10 -10 --------- Run | Yrd Mat Min Sub Distress Signals . | . . . . Communications Jammed . | . . . . Distress Signals . | . . . . Times Spotted 21 | . 17 . 4 Peak Tracking Total 3 | . 3 . 3 Tactical Retreats 2 | . 2 . . Traps | -11 -10 -10 -10 ------- Run | Yrd Mat Min Sub Traps Triggered . | . . . . Indirectly . | . . . . Trap Hack Attempts . | . . . . Triggered . | . . . . Disarmed . | . . . . Reprogrammed . | . . . . Reused . | . . . . Traps Extracted . | . . . . Installed . | . . . . Triggered . | . . . . Machines | -11 -10 -10 -10 ---------- Run | Yrd Mat Min Sub Machines Disabled 1 | . 1 . . Max in Single Turn 1 | . 1 . . Machines Repaired . | . . . . Machines Dismantled . | . . . . Machines Sabotaged . | . . . . Overloaded Fab Kills . | . . . . Hacking | -11 -10 -10 -10 --------- Run | Yrd Mat Min Sub Machines Accessed 4 | . 4 . . Terminals 3 | . 3 . . Fabricators . | . . . . Repair Stations . | . . . . Recycling Units 1 | . 1 . . Scanalyzers . | . . . . Garrison Access . | . . . . Total Hacks 14 | . 14 . . Successful 6 | . 6 . . Failed 7 | . 7 . . Catastrophic 1 | . 1 . . Database Lockouts 1 | . 1 . . Manual 9 | . 9 . . Terminals 9 | . 9 . . Fabricators . | . . . . Repair Stations . | . . . . Recycling Units 5 | . 5 . . Scanalyzers . | . . . . Garrison Access . | . . . . Terminal Hacks 3 | . 3 . . Part Schematic 1 | . 1 . . Locate Traps 2 | . 2 . . Fabricator Hacks . | . . . . Repair Station Hacks . | . . . . Recycling Unit Hacks 1 | . 1 . . Retrieve Components 1 | . 1 . . Scanalyzer . | . . . . Garrison Access Hacks . | . . . . Unauthorized Hacks 2 | . 2 . . Terminals . | . . . . Fabricators . | . . . . Repair Stations . | . . . . Recycling Units 2 | . 2 . . Recyclers 1 | . 1 . . Mask 1 | . 1 . . Scanalyzers . | . . . . Garrison Access . | . . . . Data Cores Recovered . | . . . . Used . | . . . . Hacking Detections 4 | . 4 . . Full Trace Events 1 | . 1 . . Feedback Events . | . . . . Feedback Blocked . | . . . . Robot Schematics Acquired . | . . . . Robots Built . | . . . . Authchips . | . . . . Time . | . . . . Total Robot Build Rating . | . . . . Part Schematics Acquired 1 | . 1 . . Parts Built . | . . . . Authchips . | . . . . Time . | . . . . Total Part Build Rating . | . . . . Parts Repaired . | . . . . Time . | . . . . Parts Recycled . | . . . . Recycled Matter . | . . . . Retrieved Matter . | . . . . Retrieved Components 3 | . 3 . . Parts Scanalyzed . | . . . . Part Schematics Acquired . | . . . . Parts Damaged . | . . . . Bothacking | -11 -10 -10 -10 ------------ Run | Yrd Mat Min Sub Used RIF Installer . | . . . . Robots Hacked . | . . . . Non-combat . | . . . . Combat . | . . . . Robot Hacks Applied . | . . . . Relay Couplers Released . | . . . . Fabnet Peak Effective % . | . . . . Robots Rewired . | . . . . Allies Hacked . | . . . . Hacks Repelled . | . . . . Allies | -11 -10 -10 -10 -------- Run | Yrd Mat Min Sub Total Allies 3 | . . 3 . Largest Group 3 | . . 3 3 Highest-Rated Group 40 | . . 40 40 Highest-Rated Ally 16 | . . 16 16 Total Orders . | . . . . Ally Attacks 19 | . . 10 9 Total Damage 225 | . . 133 92 Kills 4 | . . 2 2 Allies Corrupted . | . . . . Allies Melted . | . . . . Intel | -11 -10 -10 -10 ------- Run | Yrd Mat Min Sub Active Infowar (turns) 1979 | 14 1163 785 17 Sensors 14 | . 14 . . Terrain 306 | 14 292 . . Seismic 1659 | . 857 785 17 Robot Analysis Total . | . . . . Derelict Logs Recovered 2 | . . 2 . Drone Launches . | . . . . Drone Recoveries . | . . . . Exploration | -11 -10 -10 -10 ------------- Run | Yrd Mat Min Sub Turns Passed 2344 | 179 1359 785 21 Spaces Moved 1047 | 74 566 401 6 Core 7 | 7 . . . Treads 183 | 67 116 . . Legs 857 | . 450 401 6 Wheels . | . . . . Hover . | . . . . Flight . | . . . . Fastest Speed 50 | 50 120 190 190 Average Speed 174 | 149 165 190 190 Slowest Speed 190 | 160 190 190 190 Overloaded Moves . | . . . . Propulsion Burnouts . | . . . . Robots Hopped . | . . . . Potential Cave-ins . | . . . . Cave-ins Triggered . | . . . . Exploration Rate (%) 39 | 4 60 90 2 Regions Visited 3 Branch Regions 2 Pre-discovered Areas . | . . . . Known Exits Taken 1 | . . 1 . Unknown Exits Taken 2 | 1 1 . . Scrap Searched 1 | . . 1 . Spaces Dug 3 | . 3 . . Terrain Destroyed 8 | . 3 . 5 Melee . | . . . . Projectile 3 | . 3 . . AOE 5 | . . . 5 Terrain Rammed . | . . . . Walls Destroyed . | . . . . Machines Disabled . | . . . . Actions | -11 -10 -10 -10 --------- Run | Yrd Mat Min Sub Total 1436 | 109 885 428 14 Wait 211 | 2 197 11 1 Move 1044 | 73 565 400 6 Hop . | . . . . Pick Up 32 | 5 19 7 1 Fast Attach 12 | 8 4 . . Attach 3 | . 2 . 1 Detach 2 | 1 1 . . Swap 21 | . 19 1 1 Drop 27 | 1 17 8 1 Fire 82 | 19 59 1 3 Melee . | . . . . Ram . | . . . . Kick 2 | . 2 . . Crush . | . . . . Escape Stasis . | . . . . Rewire . | . . . . Trap . | . . . . Miscellaneous . | . . . . Route ------- -11/Scrapyard -10/Materials (discovered 2 exits: [*Mat] / [*Min]) -10/Mines (discovered 3 exits: [*Mat x2] / *Sub) -10/Subcaves History --------- Turn | Location | Event 17 | -11/Scrapyard | Discovered new exit (range 16) 180 | -11/Scrapyard | Entered Materials 295 | -10/Materials | Discovered new exit (range 11) 303 | -10/Materials | Build established: Mutant 641 | -10/Materials | Central database locked down 737 | -10/Materials | Core integrity fell below 50% 786 | -10/Materials | Discovered new exit (range 10) 906 | -10/Materials | Build established: Scavenger-Mutant 1539 | -10/Materials | Entered Mines 1670 | -10/Mines | Assisted by bots powering up and referring to "LRC-V3" 1689 | -10/Mines | Discovered new exit (range 15) 1782 | -10/Mines | Joined a pair of Derelicts in attacking an 0b10 outpost 1947 | -10/Mines | Identified exit to Subcaves 2059 | -10/Mines | Discovered new exit (range 11) 2324 | -10/Mines | Entered Subcaves 2324 | -10/Subcaves | Accompanied by 3 allies 2325 | -10/Subcaves | Approached by a straggling Scientist 2326 | -10/Subcaves | Ambushed by Subdwellers from Twisted Machinery 2342 | -10/Subcaves | Core integrity fell below 20% 2345 | -10/Subcaves | Destroyed by R9-V15(R) with Subdweller Shrapnel Launcher Last Messages --------------- beginning to lose hope I'd never make it past all the Subs lurking out here." 02326_ 2D-S8I(R) emerges from the Twisted Machinery. 02327_ Mercenary 1a destroyed. 02328_ P4-8LU(c): "Hey, let me tag along and I can get us both out of this nasty situation. At least I think I can... The group I got separated from was talking about a shortcut back to the UFD." 02330_ 49-A9P(h) drops a Scrap Shield: "Protect yourself with this!" 02330_ Acquired 10 matter. 02332_ QW-MOV(R) destroyed. 02335_ Dropped Lgt. Cannon. 02336_ Subatomizers dissect the Aluminum Leg. 02337_ Acquired Lgt. Cannon. 02341_ Seismic Detector destroyed. 02341_ P4-8LU(c) destroyed. 02343_ 49-A9P(h) destroyed. Map ----- +----------------------------------------------------+ | ?????????????????????????????????????????????????? | | ?????????????????????????????????????????????????? | | ?????????????????????????????????????????????????? | | ?????????????????????????????????????????????????? | | ?????????????????????????????????????????????????? | | ?????????????????????????????????????????????????? | | ?????????????????????????????????????????????????? | | ?????????????????????????????????????????????????? | | ?????????????????????????????????????????????????? | | ?????????????????????????????????????????????????? | | ??????????????????????? ?????????????????????????? | | ????????????????????? #????????????????????????? | | ?????????????????? ????????????????????????? | | ???????????????? ???????? ???????????????? | | ???????????????? ??????? ????????????????? | | ?????????????? ## ?????? #????????????????? | | ??????????????? RR #?????$#????????????????? | | ???????????????? ##??? #????????????????? | | ????????????????? #### ###??????????????? | | ?????????????????? ???????????????? | | ???????????????????# ????????????????? | | ????????????????????# #?????????????????? | | ????????????????????# #??????????????????? | | ????????????????????# ;#??????????????????? | | ????????????????????# [ #??????????????????? | | ????????????????????# !%%@ #??????????????????? | | ????????????????????# = #??????????????????? | | ??????????# " #! ##g g! #???????????????? | | ?????????? " &%[& = #??????????????? | | ??????????????#""#& # #?????????????? | | ?????????????????##?##### ##?????????????? | | ????????????????????????## ###??????????????? | | ??????????????????????????#######????????????????? | | ?????????????????????????????????????????????????? | | ?????????????????????????????????????????????????? | | ?????????????????????????????????????????????????? | | ?????????????????????????????????????????????????? | | ?????????????????????????????????????????????????? | | ?????????????????????????????????????????????????? | | ?????????????????????????????????????????????????? | | ?????????????????????????????????????????????????? | | ?????????????????????????????????????????????????? | | ?????????????????????????????????????????????????? | | ?????????????????????????????????????????????????? | | ?????????????????????????????????????????????????? | | ?????????????????????????????????????????????????? | | ?????????????????????????????????????????????????? | | | | | | | +----------------------------------------------------+ Best States ------------- Heat Dissipation 39 Energy Generation 14 Energy Capacity 160 Matter Stores 300 Matter Capacity 300 Sight Range 16 Robot Scan Range 14 Terrain Scan Range 16 Terrain Scan Density 10 Evasion (%) 55 Recoil Reduction 2 Item Schematics ----------------- Hcp. Storage Unit | -10/Materials | Hacked Robot Schematics ------------------ None Fabricated ------------ Nothing Repaired ---------- Nothing Alien Tech Used ----------------- None Achievements -------------- None Challenges ------------ None Game ------ Seed MetaWarlordRegenerator Manual? 0 Play Time 00:18:12 Cumulative 69.6 hours Start 2025.05.22 @ 20:45:35 End 2025.05.22 @ 21:02:56 Sessions 1 Manual Loads 0 Difficulty Rogue Special Mode None Game No. 48 Rogue 48 Adventurer 0 Explorer 0 Win Type - Total 0 Types 0/0/0/0/0/0/0/0/0/0 Lore% 23 Gallery% 42 Achievement% 40 Wizard Run 0 Options --------- Layout 2 ASCII 0 Keyboard 0 Movement Numpad Keybinds 0 Fullscreen 2 Font 48/Smallcaps Map View 50x44 Zoom Use 0% Tactical HUD 1 Map Filters NONE Filters NONE Steam 1 RUN: 57cf8bb7-6e12-4eae-a2ae-bd135ce4202a